bitfinex/quotes_ETHUSD_20250626
["timestamp","ask_amount","ask_price","bid_price","bid_amount"]
[1750957163443,0.2066,2425.8,2425.6,4.4934]
[1750957166776,0.2066,2425.8,2425.7,4.4934]
[1750957167779,0.2066,2425.8,2425.7,5.87452662]
[1750957169472,0.2066,2425.8,2425.7,6.62822662]
[1750957170660,0.001,2426.0,2425.9,4.2858]
[1750957177917,0.2066,2426.0,2425.9,4.2858]
[1750957180407,0.2066,2426.0,2425.9,4.28857248]
[1750957183290,0.9709,2426.0,2425.9,4.28857248]
[1750957185079,0.2066,2426.0,2425.9,4.28857248]
[1750957185279,0.2066,2426.0,2425.9,5.56712973]
[1750957186436,0.001,2426.0,2425.9,5.56712973]
[1750957187610,0.001,2426.1,2426.0,4.2848]
[1750957188117,0.001,2426.1,2426.0,4.28632729]
[1750957190585,0.001,2426.1,2426.0,4.2848]
[1750957192896,0.001,2426.1,2426.0,4.93683572]
[1750957195396,0.001,2426.2,2426.1,5.6436]
[1750957195596,0.001,2426.2,2426.1,17.77990784]
[1750957195917,0.001,2426.2,2426.1,19.42319272]
[1750957196119,0.001,2426.4,2426.3,4.12150187]
[1750957196319,0.001,2426.4,2426.3,13.39210187]
[1750957196513,0.001,2426.4,2426.3,23.94210187]
[1750957196708,0.001,2426.5,2426.4,15.44893201]
[1750957196912,0.001,2426.5,2426.4,25.50287822]
[1750957197227,0.001,2426.7,2426.6,4.12099233]
[1750957197423,0.001,2426.7,2426.6,11.61739233]
[1750957198916,0.001,2426.7,2426.6,12.16739233]
[1750957199720,0.001,2426.7,2426.6,22.16739233]
[1750957200024,0.001,2426.7,2426.6,23.44594958]
[1750957200352,0.001,2426.8,2426.7,23.75493251]
[1750957200489,0.001,2427.4,2427.3,4.11980389]
[1750957200817,0.001,2427.4,2427.3,22.4993701]
[1750957201016,0.001,2427.4,2427.3,23.15140582]
[1750957201723,0.001,2427.4,2427.3,14.66140582]
[1750957201923,0.001,2427.4,2427.3,23.15140582]
[1750957202091,0.001,2427.4,2427.3,19.03160193]
[1750957203398,0.001,2427.4,2427.3,9.14103572]
[1750957203816,0.001,2427.4,2427.3,19.91613572]
[1750957204021,0.001,2427.4,2427.3,24.58593961]
[1750957204623,0.001,2427.4,2427.3,19.91513572]
[1750957204828,0.001,2427.4,2427.3,24.58493961]
[1750957204992,0.001,2427.4,2427.3,19.91513572]
[1750957205201,0.001,2427.4,2427.3,24.03493961]
[1750957205433,0.001,2427.4,2427.3,24.24053961]
[1750957205929,0.001,2427.4,2427.3,24.79053961]
[1750957210927,0.001,2427.4,2427.3,0.9807]
[1750957211230,0.001,2427.4,2427.3,8.6926]
[1750957212309,0.001,2427.4,2427.3,0.2056]
[1750957212525,0.001,2427.4,2427.2,8.56446621]
[1750957212728,0.001,2427.4,2427.3,1.752]
[1750957213344,0.001,2427.4,2427.1,0.2056]
[1750957213645,0.9647,2427.3,2427.0,1.752]
[1750957214243,0.9647,2427.3,2427.0,8.486]
[1750957215041,0.001,2427.4,2427.0,9.56076]
[1750957215446,0.001,2427.4,2427.0,8.6916]
[1750957215631,0.2056,2427.3,2427.0,8.486]
[1750957218848,0.2056,2427.3,2427.0,1.752]
[1750957223923,0.2056,2427.3,2426.9,0.2056]
[1750957224125,0.2056,2427.1,2427.0,8.484]
[1750957226467,0.8198,2427.0,2426.8,1.75]
[1750957227152,0.2056,2426.9,2426.5,10.5046]
[1750957227351,0.2056,2426.9,2426.6,8.484]
[1750957227654,0.2056,2426.9,2426.6,1.75]
[1750957230027,0.2056,2426.9,2426.5,10.299]
[1750957230368,0.2056,2426.8,2426.6,1.75]
[1750957233351,0.2056,2426.8,2426.5,10.299]
[1750957234245,0.2056,2426.6,2426.5,12.049]
[1750957234937,0.2056,2426.6,2426.5,10.299]
[1750957235467,0.2056,2426.6,2426.5,12.05]
[1750957235843,0.2056,2426.6,2426.5,10.299]
[1750957236041,0.2056,2426.6,2426.5,12.05]
[1750957240675,0.2056,2426.6,2426.5,20.61446621]
[1750957240970,0.2056,2426.8,2426.5,23.34941283]
[1750957241170,0.7886,2427.3,2426.7,4.12082251]
[1750957241350,0.2056,2427.1,2426.9,8.56446621]
[1750957241960,0.001,2427.4,2426.9,8.56446621]
[1750957241961,0.001,2427.4,2427.0,1.751]
[1750957242162,0.2056,2427.3,2427.0,8.486]
[1750957242364,0.001,2427.4,2427.2,8.56446621]
[1750957242670,0.001,2427.4,2427.2,9.35426621]
[1750957243172,0.001,2427.4,2427.2,13.47423013]
[1750957243348,0.001,2427.4,2427.2,16.08926621]
[1750957246156,0.001,2427.4,2427.2,20.2092264]
[1750957246347,0.001,2427.4,2427.3,0.82896461]
[1750957250162,0.001,2427.4,2427.3,8.483]
[1750957250375,0.001,2427.4,2427.3,1.749]
[1750957250978,0.001,2427.4,2427.3,1.9546]
[1750957254506,0.001,2427.4,2427.3,14.6388701]
[1750957254714,0.001,2427.4,2427.3,10.51906621]
[1750957254898,0.001,2427.4,2427.3,13.23877898]
[1750957256604,0.001,2427.4,2427.3,17.35858287]
[1750957256896,0.001,2427.4,2427.3,13.23877898]
[1750957258886,0.001,2427.4,2427.3,4.67431277]
[1750957259091,0.001,2427.4,2427.3,1.9546]
[1750957259903,0.001,2427.4,2427.3,6.85340389]
[1750957260603,0.001,2427.4,2427.3,15.4178701]
[1750957264408,0.001,2427.4,2427.3,9.4646]
[1750957265906,0.001,2427.4,2427.3,22.1488701]
[1750957266109,0.001,2427.4,2427.3,24.94625581]
[1750957267007,0.001,2427.6,2427.5,15.48416446]
[1750957267209,0.001,2427.6,2427.5,22.21516446]
[1750957267507,0.001,2427.6,2427.5,22.42076446]
[1750957267709,0.001,2427.6,2427.5,22.73575401]
[1750957267877,0.001,2427.6,2427.5,23.29667953]
[1750957268479,0.001,2427.8,2427.5,23.29667953]
[1750957268480,0.001,2427.8,2427.7,15.49872509]
[1750957268684,0.001,2427.8,2427.7,41.2917913]
[1750957270304,0.001,2427.8,2427.7,67.7315013]
[1750957270704,0.001,2427.8,2427.7,43.9557943]
[1750957270880,0.001,2427.8,2427.7,45.06084092]
[1750957271293,0.001,2427.8,2427.7,53.54403992]
[1750957272203,0.001,2427.8,2427.7,44.74483792]
[1750957272406,0.001,2427.9,2427.8,28.16555743]
[1750957272816,0.001,2428.4,2427.8,28.16555743]
[1750957272817,0.001,2428.4,2428.1,4.11841586]
[1750957273006,0.001,2428.4,2428.2,33.39018471]
[1750957273316,0.001,2428.4,2428.2,33.59578471]
[1750957273719,0.001,2428.6,2428.5,25.95341516]
[1750957274031,0.001,2428.6,2428.5,32.51343437]
[1750957274231,0.001,2428.6,2428.5,48.45279039]
[1750957274529,0.001,2428.7,2428.6,14.90444461]
[1750957274733,0.001,2428.7,2428.6,23.40844461]
[1750957275335,0.7886,2429.8,2429.1,4.11661416]
[1750957275513,0.7886,2429.8,2429.2,18.42066621]
[1750957275847,0.7886,2429.8,2429.5,0.2056]
[1750957276048,0.7886,2429.8,2429.6,6.754]
[1750957276349,0.7886,2429.8,2429.5,6.9626]
[1750957276721,0.7886,2429.8,2429.6,1.749]
[1750957277109,0.8029,2429.7,2429.5,1.748]
[1750957277304,0.2056,2429.6,2429.5,1.748]
[1750957277743,0.2056,2429.6,2429.5,8.505]
[1750957277948,0.2056,2429.6,2429.5,1.748]
[1750957278647,0.8029,2430.1,2429.5,1.748]
[1750957278848,0.2056,2429.9,2429.5,1.748]
[1750957279938,0.803,2429.8,2429.5,1.748]
[1750957281525,0.803,2429.8,2429.4,0.2056]
[1750957281726,0.803,2429.8,2429.5,1.763]
[1750957282025,1.90386,2429.8,2429.5,1.763]
[1750957282336,1.90386,2429.8,2429.4,0.2056]
[1750957282525,1.90386,2429.8,2429.4,1.9686]
[1750957282939,0.803,2429.8,2429.4,1.9686]
[1750957283430,0.2056,2429.9,2429.5,6.751]
[1750957284127,12.67875068,2430.6,2429.7,8.56446621]
[1750957284128,0.815,2430.6,2429.7,8.56446621]
[1750957284329,0.815,2430.6,2429.8,6.75]
[1750957284646,10.815,2430.6,2429.9,3.29444662]
[1750957284854,10.0,2430.6,2429.9,1.763]
[1750957285031,0.7776,2430.5,2429.9,1.763]
[1750957286074,0.7776,2430.5,2429.6,0.7747]
[1750957286222,10.0,2430.7,2429.3,0.8268]
[1750957286223,0.8228,2430.2,2429.3,0.8268]
[1750957286430,0.8228,2430.2,2429.4,8.516]
[1750957286727,0.8228,2430.1,2429.5,1.763]
[1750957287540,4.93786696,2430.1,2429.5,1.763]
[1750957287729,2.3016867,2430.0,2429.5,1.763]
[1750957291691,2.3016867,2430.0,2429.6,1.763]
[1750957293257,2.3016867,2430.0,2429.1,0.8268]
[1750957293451,2.3016867,2430.0,2429.2,1.763]
[1750957294200,0.2056,2429.7,2429.3,0.2056]
[1750957294396,0.2056,2429.7,2429.3,1.15954]
[1750957295281,0.7992,2430.2,2429.6,0.55]
[1750957295585,0.7992,2430.2,2429.5,0.8044]
[1750957295586,0.7992,2430.2,2429.7,1.763]
[1750957298194,0.7793,2430.7,2430.0,9.11446621]
[1750957298354,0.001,2430.8,2430.3,8.56446621]
[1750957298557,0.001,2430.8,2430.4,1.762]
[1750957299394,0.001,2430.8,2430.5,0.55]
[1750957299690,0.001,2430.8,2430.5,4.66437919]
[1750957299873,0.001,2430.8,2430.6,0.64263792]
[1750957300387,0.001,2430.8,2430.6,7.40663792]
[1750957300990,0.001,2430.8,2430.6,11.52083629]
[1750957301193,0.001,2430.8,2430.7,0.7943]
[1750957301379,0.001,2430.8,2430.6,7.40663792]
[1750957301580,0.001,2430.8,2430.7,0.82009379]
[1750957301785,0.001,2430.8,2430.7,1.762]
[1750957303760,0.001,2430.8,2430.6,0.64263792]
[1750957303990,0.001,2430.8,2430.7,1.762]
[1750957304476,0.001,2430.8,2430.3,4.66458887]
[1750957304686,0.001,2430.8,2430.4,12.63743358]
[1750957304896,0.001,2430.8,2430.5,4.1143695]
[1750957305188,0.001,2430.8,2430.6,0.776]
[1750957305494,0.001,2430.8,2430.7,0.48903695]
[1750957305689,0.001,2430.8,2430.7,5.15307817]
[1750957306065,0.001,2430.8,2430.7,0.48903695]
[1750957306467,0.001,2430.8,2430.7,4.60307817]
[1750957306994,0.001,2430.8,2430.7,17.55007817]
[1750957307193,0.001,2430.8,2430.7,18.34537817]
[1750957307384,0.001,2430.8,2430.7,26.87537817]
[1750957308294,0.001,2430.8,2430.7,62.79879715]
[1750957308498,0.001,2430.8,2430.7,39.98576315]
[1750957308870,0.001,2430.8,2430.7,42.90193715]
[1750957309268,0.001,2430.8,2430.7,45.41089015]
[1750957309593,0.001,2430.8,2430.7,42.30002615]
[1750957310281,0.001,2430.8,2430.7,34.11946915]
[1750957310483,0.001,2430.8,2430.7,39.59570615]
[1750957310688,0.001,2430.8,2430.7,15.94837817]
[1750957310888,0.001,2430.8,2430.7,19.83033695]
[1750957311201,0.001,2430.8,2430.7,19.83133695]
[1750957311865,0.001,2430.8,2430.7,24.49537817]
[1750957312064,0.001,2430.8,2430.7,20.38133695]
[1750957312271,0.001,2430.8,2430.7,24.49537817]
[1750957312899,0.001,2430.8,2430.7,20.38133695]
[1750957313084,0.794,2430.8,2430.7,11.03903695]
[1750957313286,0.001,2430.8,2430.7,9.03503695]
[1750957314302,0.001,2430.8,2429.9,0.7868]
[1750957314519,0.001,2430.8,2430.0,8.545]
[1750957314682,0.001,2430.8,2430.1,4.11501454]
[1750957315067,0.001,2430.8,2430.4,4.66452791]
[1750957315270,0.001,2430.8,2430.5,8.55]
[1750957315500,0.001,2430.8,2430.7,4.66404122]
[1750957315669,0.001,2430.8,2430.7,14.66404122]
[1750957317300,0.001,2430.8,2430.7,15.49034122]
[1750957318670,0.001,2430.8,2430.7,22.26534122]
[1750957319403,0.001,2430.8,2430.7,16.775]
[1750957319565,0.001,2430.8,2430.7,19.20957691]
[1750957319988,0.001,2430.8,2430.7,20.97857691]
[1750957320773,0.001,2430.8,2430.7,16.54861813]
[1750957320969,0.001,2430.8,2430.7,25.09261813]
[1750957321390,0.001,2430.8,2430.7,25.64261813]
[1750957321631,0.001,2430.8,2430.7,26.46911813]
[1750957324092,0.001,2430.8,2430.7,2.43457691]
[1750957324295,0.001,2430.8,2430.7,1.774]
[1750957325002,0.8164,2430.7,2430.0,0.8008]
[1750957325172,0.8164,2430.7,2430.4,0.2056]
[1750957325396,0.8164,2430.7,2430.4,1.774]
[1750957325740,0.8028,2430.6,2430.4,1.774]
[1750957325902,0.2056,2430.5,2430.4,1.774]
[1750957326730,0.2056,2430.5,2430.1,0.2056]
[1750957326893,0.2056,2430.5,2430.3,1.774]
[1750957327289,0.2056,2430.5,2430.1,1.63768208]
[1750957327615,0.8028,2430.6,2430.3,0.2056]
[1750957329523,0.8028,2430.6,2430.4,1.775]
[1750957334532,0.2056,2430.7,2430.4,1.775]
[1750957336693,0.2056,2430.7,2430.2,6.9736]
[1750957336694,0.8028,2430.6,2430.2,0.2056]
[1750957336895,0.8028,2430.6,2430.2,1.775]
[1750957337100,0.2056,2430.4,2430.2,1.775]
[1750957339620,0.1556,2430.4,2430.2,1.775]
[1750957340922,0.1556,2430.4,2430.0,0.2056]
[1750957341134,0.1556,2430.4,2430.1,1.765]
[1750957342397,0.8223,2430.3,2430.2,1.765]
[1750957342599,0.8223,2430.3,2429.7,10.279]
[1750957342798,0.8223,2430.3,2429.5,0.797]
[1750957342799,0.2056,2430.0,2429.6,1.765]
[1750957343040,0.8301,2429.9,2428.8,4.91436846]
[1750957343246,0.8202,2429.5,2429.2,0.2056]
[1750957343444,0.2056,2429.4,2429.0,0.2056]
[1750957343795,4.11523198,2430.0,2428.9,1.765]
[1750957343796,0.8202,2429.3,2428.9,1.765]
[1750957344031,0.2056,2429.2,2428.9,1.765]
[1750957344231,0.2056,2429.2,2428.8,0.2056]
[1750957344439,0.2056,2429.2,2428.9,1.765]
[1750957345930,0.8202,2429.3,2428.5,0.7712]
[1750957346135,0.2056,2429.1,2428.6,9.84372]
[1750957346299,0.2056,2429.1,2428.6,1.31072]
[1750957346825,0.2056,2429.1,2428.7,1.765]
[1750957347230,0.2056,2429.1,2428.8,1.765]
[1750957347437,0.8202,2429.3,2428.8,7.63014597]
[1750957347737,4.11465951,2430.4,2429.1,4.11666645]
[1750957347738,0.7106,2429.6,2429.1,4.11666645]
[1750957347947,0.7106,2429.6,2429.2,0.2056]
[1750957348106,0.7106,2429.6,2429.2,4.32217442]
[1750957348306,10.0,2430.7,2429.0,10.55]
[1750957348613,0.2056,2429.8,2429.4,0.2056]
[1750957348813,0.2056,2430.0,2429.5,1.9706]
[1750957349132,0.2056,2430.0,2429.5,6.08664873]
[1750957349753,0.2056,2430.0,2429.5,1.9706]
[1750957350469,0.2056,2430.0,2429.6,4.11590385]
[1750957350608,0.2056,2430.0,2429.7,0.60865039]
[1750957351785,0.8042,2430.1,2429.8,4.11555522]
[1750957352047,0.828,2430.4,2429.8,4.66541554]
[1750957352204,1.0336,2430.4,2430.0,0.2056]
[1750957352404,1.0336,2430.4,2430.0,1.9706]
[1750957354201,1.0336,2430.4,2430.0,2.63420155]
[1750957356648,0.828,2430.4,2430.1,1.765]
[1750957356854,0.2056,2430.2,2430.1,1.765]
[1750957357357,0.2056,2430.2,2429.7,0.60865039]
[1750957357562,0.828,2430.4,2429.9,1.765]
[1750957357759,0.2056,2430.1,2429.9,1.765]
[1750957359326,0.2056,2430.1,2429.7,0.60865039]
[1750957359532,0.2056,2430.1,2429.8,1.765]
[1750957359731,0.8262,2430.0,2429.8,1.765]
[1750957360743,0.8262,2430.0,2429.6,17.052]
[1750957360744,0.2056,2429.9,2429.7,1.765]
[1750957361158,0.2056,2429.9,2429.7,3.66706]
[1750957361965,0.8262,2430.0,2429.6,12.048]
[1750957363464,0.2056,2429.9,2429.6,12.048]
[1750957364040,0.2056,2429.9,2429.6,10.283]
[1750957364237,0.2056,2429.9,2429.7,1.765]
[1750957364466,0.8149,2430.4,2429.7,1.765]
[1750957364669,0.2056,2430.3,2429.9,4.11530142]
[1750957364845,0.2056,2430.3,2430.0,6.768]
[1750957366556,0.2056,2430.3,2430.0,10.88322125]
[1750957366775,0.2056,2430.6,2430.1,5.07976419]
[1750957366976,0.2056,2430.6,2430.2,3.36129854]
[1750957368463,0.7719,2430.7,2430.2,3.36129854]
[1750957369995,0.7719,2430.7,2430.3,8.533]
[1750957371295,0.7719,2430.7,2430.2,1.59629854]
[1750957371590,0.7719,2430.7,2430.4,1.769]
[1750957373005,0.7719,2430.7,2430.3,1.769]
[1750957373481,0.7719,2430.7,2430.3,2.35739722]
[1750957374575,0.7719,2430.7,2430.3,1.769]
[1750957375303,0.7719,2430.7,2429.9,10.7875]
[1750957375502,0.7719,2430.7,2430.0,8.526]
[1750957375707,0.7719,2430.7,2429.9,10.7875]
[1750957376003,0.7719,2430.7,2430.0,1.769]
[1750957377294,0.7719,2430.7,2430.0,4.16104511]
[1750957377511,0.7719,2430.7,2430.0,4.93314511]
[1750957377676,0.7719,2430.7,2430.0,9.04827571]
[1750957377880,0.7719,2430.7,2430.0,7.27927571]
[1750957378135,0.7719,2430.7,2430.1,1.769]
[1750957378411,0.9775,2430.7,2430.2,1.37451964]
[1750957379111,0.9775,2430.7,2430.2,5.48939311]
[1750957380105,0.9775,2430.7,2430.3,4.11464163]
[1750957380329,0.9775,2430.7,2430.2,5.48931207]
[1750957381686,0.9775,2430.7,2430.2,1.37451964]
[1750957381926,0.001,2430.8,2430.2,1.37451964]
[1750957381927,0.001,2430.8,2430.5,4.11425343]
[1750957382122,0.001,2430.8,2430.6,1.769]
[1750957382459,0.001,2430.8,2430.6,5.8831717]
[1750957382630,0.001,2430.8,2430.7,4.11404122]
[1750957382830,0.001,2430.8,2430.7,4.31964122]
[1750957383158,0.001,2430.8,2430.7,4.87388178]
[1750957384060,0.001,2430.8,2430.7,0.75984056]
[1750957384263,0.001,2430.8,2430.7,8.7276]
[1750957385567,0.001,2430.8,2430.7,12.84164122]
[1750957386740,0.001,2430.8,2430.7,8.7276]
[1750957386938,0.001,2430.8,2430.7,12.84164122]
[1750957389268,0.001,2430.8,2430.7,13.39164122]
[1750957389449,0.001,2430.8,2430.7,15.98608582]
[1750957389650,0.001,2430.8,2430.7,25.98608582]
[1750957389830,0.001,2430.8,2430.7,50.26385582]
[1750957390029,0.001,2430.8,2430.7,49.13737532]
[1750957390255,0.001,2430.8,2430.7,46.18737532]
[1750957390847,0.001,2430.8,2430.7,36.57460532]
[1750957392241,0.001,2430.8,2430.7,66.57460532]
[1750957392434,0.2203031,2430.9,2430.8,44.66387197]
[1750957392636,0.2203031,2430.9,2430.8,40.98543613]
[1750957392842,0.2203031,2430.9,2430.8,37.15703613]
[1750957393270,0.12954858,2430.9,2430.8,62.69981513]
[1750957393445,0.12954858,2430.9,2430.8,63.18737731]
[1750957393967,0.12954858,2430.9,2430.8,53.55603731]
[1750957394353,0.12954858,2430.9,2430.8,57.33655831]
[1750957394553,0.12954858,2430.9,2430.8,51.59644831]
[1750957395178,0.12954858,2430.9,2430.8,41.68065213]
[1750957395477,0.12954858,2430.9,2430.8,54.13419413]
[1750957395679,0.12954858,2430.9,2430.8,50.33429413]
[1750957395889,0.12954858,2430.9,2430.8,17.53716248]
[1750957396056,0.12954858,2430.9,2430.8,25.49816248]
[1750957396556,0.12954858,2430.9,2430.8,26.04816248]
[1750957396962,0.12954858,2430.9,2430.8,26.04916248]
[1750957397570,0.12954858,2430.9,2430.8,17.53716248]
[1750957397818,0.12954858,2430.9,2430.8,26.04716248]
[1750957398676,0.12954858,2430.9,2430.8,0.2056]
[1750957398888,0.92824858,2430.9,2430.8,1.768]
[1750957400993,0.92824858,2430.9,2430.7,10.28]
[1750957401202,0.92824858,2430.9,2430.8,1.768]
[1750957401696,0.92824858,2430.9,2430.7,10.28]
[1750957401887,0.92824858,2430.9,2430.7,18.813]
[1750957402086,0.92824858,2430.9,2430.7,10.28]
[1750957402280,0.92824858,2430.9,2430.7,12.05]
[1750957402675,0.92824858,2430.9,2430.7,10.28]
[1750957403970,0.2056,2430.8,2430.7,10.28]
[1750957404172,0.92824858,2430.9,2430.7,10.28]
[1750957404394,0.92824858,2430.9,2430.8,6.761]
[1750957405615,0.12954858,2430.9,2430.8,6.761]
[1750957406296,0.2066,2431.1,2431.0,4.56945142]
[1750957406470,0.2066,2431.1,2431.0,11.33345142]
[1750957407974,0.001,2431.1,2431.0,11.33345142]
[1750957408180,0.001,2431.1,2431.0,13.16304364]
[1750957408410,0.001,2431.1,2431.0,20.98304364]
[1750957408572,0.001,2431.1,2431.0,25.09657716]
[1750957408775,0.001,2431.1,2431.0,20.98304364]
[1750957408976,0.001,2431.1,2431.0,25.09657716]
[1750957409286,0.001,2431.1,2431.0,25.64657716]
[1750957409486,0.001,2431.1,2431.0,22.74904364]
[1750957410211,0.001,2431.1,2431.0,26.86257716]
[1750957410917,0.001,2431.1,2431.0,14.21904364]
[1750957411117,0.8062,2431.1,2431.0,13.11145142]
[1750957411678,0.001,2431.1,2431.0,13.11145142]
[1750957412586,0.001,2431.1,2431.0,4.56945142]
[1750957412787,0.001,2431.1,2431.0,13.11145142]
[1750957414602,0.001,2431.1,2431.0,13.10745142]
[1750957414808,0.001,2431.1,2431.0,13.10645142]
[1750957415003,0.2066,2431.1,2431.0,13.10645142]
[1750957415604,0.001,2431.1,2431.0,13.10645142]
[1750957421136,1.0108,2431.3,2431.1,4.56845142]
[1750957421284,1.0108,2431.3,2431.2,4.56845142]
[1750957422033,0.2056,2431.3,2431.2,11.32545142]
[1750957422189,0.2056,2431.5,2431.2,16.74918465]
[1750957422396,0.8322,2431.7,2431.2,24.56918465]
[1750957422583,0.2066,2431.7,2431.4,0.8014]
[1750957422918,0.2066,2431.7,2431.5,8.53]
[1750957423288,0.001,2431.7,2431.4,3.35901847]
[1750957423500,0.001,2431.7,2431.5,8.531]
[1750957423707,0.001,2431.7,2431.4,3.56461847]
[1750957423893,0.001,2431.7,2431.6,1.77]
[1750957424106,0.001,2431.7,2431.6,6.33845142]
[1750957424624,0.001,2431.7,2431.6,13.09845142]
[1750957425004,0.001,2431.7,2431.6,13.10045142]
[1750957425203,0.7548,2431.7,2431.6,4.56845142]
[1750957427043,1.24168209,2431.7,2431.6,4.56845142]
[1750957427240,0.9651,2431.6,2431.2,1.77]
[1750957427409,0.8001,2431.5,2431.2,1.77]
[1750957428228,0.2056,2431.3,2431.2,1.77]
[1750957429301,1.0109,2431.3,2431.2,1.77]
[1750957429634,1.0109,2431.3,2431.1,1.77]
[1750957429792,0.2056,2431.2,2431.1,1.77]
[1750957432232,0.2056,2431.2,2431.1,6.33845142]
[1750957435202,0.8237,2431.7,2431.1,8.47619656]
[1750957435401,0.2056,2431.5,2431.1,8.47619656]
[1750957435712,0.2056,2431.5,2431.2,6.757]
[1750957436022,0.2056,2431.5,2431.3,4.56845142]
[1750957437207,0.8237,2431.7,2431.3,4.56845142]
[1750957437940,1.80716483,2431.7,2431.3,4.56845142]
[1750957438105,0.7568,2431.5,2431.3,4.56845142]
[1750957439823,0.98346483,2431.5,2431.3,4.56845142]
[1750957440023,0.7568,2431.4,2431.3,4.56845142]
[1750957440432,0.7568,2431.3,2431.0,4.56845142]
[1750957440631,0.98346483,2431.4,2431.1,4.56845142]
[1750957440632,0.7515,2431.2,2431.1,4.56845142]
[1750957441026,2.33628945,2431.2,2431.1,4.56845142]
[1750957441248,0.7515,2431.2,2431.1,4.56845142]
[1750957442861,14.92979512,2431.2,2431.1,4.56845142]
[1750957443049,15.91474621,2431.2,2431.1,4.56845142]
[1750957443357,11.80155109,2431.2,2431.1,4.56845142]
[1750957443558,15.91474621,2431.2,2431.1,4.56845142]
[1750957444157,13.8043214,2431.2,2431.1,4.56845142]
[1750957444663,17.91751652,2431.2,2431.1,4.56845142]
[1750957444967,1.0242,2431.1,2430.5,4.56845142]
[1750957445262,1.80355109,2431.1,2430.6,4.56845142]
[1750957445673,14.11358028,2431.0,2430.6,4.56845142]
[1750957445882,3.00365314,2430.9,2430.6,4.56845142]
[1750957447525,10.0,2431.0,2430.6,4.56845142]
[1750957447526,2.82337031,2431.2,2430.6,4.56845142]
[1750957447842,10.97168766,2431.8,2430.6,4.56845142]
[1750957447843,0.2056,2431.0,2430.7,1.768]
[1750957449031,1.8036895,2431.5,2430.8,0.827]
[1750957449283,0.2056,2431.2,2430.9,0.2595]
[1750957450753,0.2056,2431.2,2431.0,4.56845142]
[1750957451060,0.2056,2431.2,2431.1,4.56845142]
[1750957452046,0.001,2431.7,2431.2,4.36285142]
[1750957452228,0.2066,2431.7,2431.3,6.13085142]
[1750957452428,0.2066,2431.7,2431.4,0.63364514]
[1750957452837,0.001,2431.7,2431.4,0.63364514]
[1750957453467,0.001,2431.7,2431.5,5.19025142]
[1750957454945,0.001,2431.7,2431.6,1.768]
[1750957456538,0.001,2431.7,2431.6,6.13085142]
[1750957457365,0.001,2431.7,2431.6,6.80730108]
[1750957458470,0.001,2431.7,2431.6,7.58160108]
[1750957458669,0.001,2431.7,2431.6,7.78720108]
[1750957458855,0.2048,2432.0,2431.9,4.35985142]
[1750957459337,0.001,2432.1,2432.0,0.7743]
[1750957459540,0.001,2432.1,2432.0,1.6989302]
[1750957461268,0.001,2432.1,2432.0,5.8107723]
[1750957461442,0.001,2432.1,2432.0,16.3607723]
[1750957461642,0.001,2432.1,2432.0,24.1807723]
[1750957462772,0.001,2432.1,2432.0,28.6049302]
[1750957462952,0.001,2432.1,2432.0,32.7167723]
[1750957463566,0.001,2432.1,2432.0,28.6049302]
[1750957463970,0.001,2432.1,2432.0,20.0689302]
[1750957464172,0.001,2432.1,2432.0,28.0629302]
[1750957465469,0.001,2432.7,2432.3,4.35785142]
[1750957465641,0.001,2432.7,2432.4,4.35785142]
[1750957466669,0.001,2432.7,2432.5,4.35785142]
[1750957467055,0.001,2432.7,2432.6,4.35785142]
[1750957467252,0.7646,2432.7,2432.6,4.35785142]
[1750957467652,1.84106,2432.7,2432.6,4.35785142]
[1750957468179,0.7646,2432.7,2432.6,4.35785142]
[1750957468547,0.001,2432.7,2432.6,4.35785142]
[1750957469380,0.2058,2432.7,2432.6,4.35785142]
[1750957472481,0.9593,2432.7,2432.6,4.35785142]
[1750957474479,0.9593,2432.7,2432.3,4.35785142]
[1750957474679,0.7545,2432.7,2432.3,4.35785142]
[1750957477375,0.2048,2432.4,2432.3,4.35785142]
[1750957477695,0.2048,2432.4,2432.3,4.97103656]
[1750957477994,0.001,2432.7,2432.3,4.97103656]
[1750957477995,0.2058,2432.7,2432.4,0.7809]
[1750957480260,0.2058,2432.7,2432.5,4.35785142]
[1750957480799,0.001,2432.7,2432.5,4.35785142]
[1750957482787,0.001,2433.1,2432.9,4.35685142]
[1750957482979,0.001,2433.1,2433.0,9.73768514]
[1750957483172,0.001,2433.1,2433.0,28.75468863]
[1750957484121,0.001,2433.1,2433.0,24.09453656]
[1750957484495,0.001,2433.1,2433.0,28.20468863]
[1750957485017,0.001,2433.1,2433.0,28.75468863]
[1750957486721,0.001,2433.1,2433.0,24.64453656]
[1750957486936,0.001,2433.1,2433.0,24.09953656]
[1750957487814,0.001,2433.1,2433.0,28.20968863]
[1750957488329,0.001,2433.1,2433.0,15.56653656]
[1750957488526,0.001,2433.1,2433.0,24.09653656]
[1750957489114,0.2203031,2433.4,2433.3,4.35585142]
[1750957489323,0.2203031,2433.4,2433.3,11.11485142]
[1750957489924,0.2203031,2433.4,2433.3,14.00233656]
[1750957491193,0.2203031,2433.4,2433.3,5.46733656]
[1750957491426,0.2203031,2433.4,2433.3,6.12885142]
[1750957491723,0.2203031,2433.4,2433.3,4.35585142]
[1750957491724,1.0199031,2433.4,2433.3,4.35585142]
[1750957492695,0.2203031,2433.4,2433.3,4.35585142]
[1750957493294,0.4251031,2433.4,2433.3,4.35585142]
[1750957495139,0.4251031,2433.4,2433.3,4.96873656]